fUST/lending_fUST_20250822
["ID","MTS","AMOUNT","RATE_DAILY","PERIOD"]
[380840397,1755873044438,-581.2325412,0.00036578,30]
[380840399,1755873044451,-160.9356585,0.00036578,30]
[380840401,1755873044462,-581.2325412,0.00036578,30]
[380840403,1755873044473,-1735.9840757,0.00036604,27]
[380840405,1755873044483,-4000.0,0.0003714,4]
[380840407,1755873044493,-194.42515532,0.00037491,2]
[380840409,1755873044503,-155.0,0.000378,120]
[380840411,1755873044512,-151.0,0.000378,5]
[380840413,1755873044521,-246.18508065,0.000378,5]
[380840415,1755873044531,-151.55192868,0.000378,5]
[380840417,1755873044541,-151.0,0.000378,5]
[380840419,1755873044550,-151.0,0.000378,5]
[380840421,1755873044560,-500.0,0.000378,5]
[380840423,1755873044571,-151.0,0.000378,5]
[380840425,1755873044582,-151.50781124,0.000378,5]
[380840427,1755873044596,-151.31787865,0.000378,5]
[380840429,1755873044605,-151.0049699,0.000378,5]
[380840431,1755873044616,-151.27193599,0.000378,5]
[380840433,1755873044626,-500.0,0.000378,5]
[380840435,1755873044636,-151.0,0.000378,5]
[380840437,1755873044645,-151.0,0.000378,5]
[380840439,1755873044654,-151.0,0.000378,5]
[380840441,1755873044664,-500.0,0.00038018,7]
[380840443,1755873044674,-500.0,0.00038074,5]
[380840445,1755873044685,-500.0,0.00038074,5]
[380840447,1755873044695,-151.0,0.00038074,5]
[380840449,1755873044704,-151.0,0.00038074,5]
[380840451,1755873044714,-1735.9840757,0.00038275,30]
[380840453,1755873044724,-215.0,0.00038348,5]
[380840455,1755873044734,-151.0,0.00038348,5]
[380840457,1755873044744,-151.0,0.00038348,5]
[380840459,1755873044754,-151.0,0.00038348,5]
[380840461,1755873044764,-151.0,0.00038622,5]
[380840463,1755873044774,-151.0,0.00038622,5]
[380840465,1755873044783,-5056.11637194,0.00038881,10]
[380840467,1755873044793,-198.0,0.00038896,5]
[380840469,1755873044804,-400.33526945,0.00039877,120]
[380840471,1755873044814,-1735.9840757,0.00039945,34]
[380840473,1755873044823,-1491.76640166,0.0003998,3]
[380840475,1755873044833,-121401.077507,0.0003999,3]
[380840477,1755873044850,-497.25546722,0.0003999,3]
[380840479,1755873044860,-151.0,0.0003999,14]
[380840481,1755873044870,-151.0,0.0003999,14]
[380840483,1755873044880,-67508.78,0.0004,30]
[380840485,1755873044891,-1717.35,0.0004,7]
[380840487,1755873044901,-155.0,0.000401,120]
[380840489,1755873044910,-160.0,0.00040159,2]
[380840491,1755873044920,-408.0,0.00040282,2]
[380840493,1755873044930,-500.94014728,0.00040717,5]
[380840495,1755873044939,-500.0,0.00040717,5]
[380840497,1755873044949,-4318.05,0.000408,14]
[380840499,1755873044958,-500.0,0.00040933,5]
[380840501,1755873044968,-1735.9840757,0.00041615,38]
[380840503,1755873044977,-155.0,0.000423,120]
[380840505,1755873044986,-216.99125601,0.00042696,3]
[380840507,1755873044996,-2000.0,0.00042706,120]
[380840509,1755873045005,-2000.0,0.00042706,120]
[380840511,1755873045014,-216.5,0.00042706,120]
[380840513,1755873045024,-994.51093444,0.0004298,3]
[380840515,1755873045034,-160.0,0.00043138,2]
[380840517,1755873045044,-408.0,0.00043282,2]
[380840519,1755873045054,-1735.9840757,0.00043286,41]
[380840521,1755873045064,-194.42515532,0.00043337,2]
[380840523,1755873045075,-155.0,0.000446,120]
[380840525,1755873045084,-502.33537298,0.000448,30]
[380840527,1755873045097,-151.0,0.00044956,120]
[380840529,1755873045108,-151.0,0.00044956,120]
[380840531,1755873045119,-1000.0,0.00045,2]
[380840533,1755873045128,-6917.69469362,0.00045,2]
[380840535,1755873045138,-5356.64873243,0.00045,120]
[380840537,1755873045148,-196.10485155,0.00045133,10]
[380840539,1755873045158,-160.0,0.00046082,2]
[380840541,1755873045167,-160.0,0.0004609,2]
[380840543,1755873045177,-160.0,0.0004609,2]
[380840545,1755873045186,-216.99125601,0.0004609,2]
[380840547,1755873045195,-215.90555669,0.0004609,2]
[380840549,1755873045205,-232.32572668,0.00046101,2]
[380840551,1755873045214,-160.0,0.00046101,2]
[380840553,1755873045224,-160.0,0.00046101,2]
[380840555,1755873045234,-376.07413479,0.00046101,2]
[380840557,1755873045243,-844.33851978,0.00046101,2]
[380840559,1755873045252,-165.93,0.000462,14]
[380840561,1755873045262,-168.0,0.00046244,2]
[380840563,1755873045271,-408.0,0.00046282,2]
[380840565,1755873045283,-168.0,0.00046396,2]
[380840567,1755873045293,-1735.9840757,0.00046627,48]
[380840569,1755873045303,-155.0,0.000469,120]
[380840571,1755873045312,-912.0,0.00047,120]
[380840573,1755873045322,-497.25546722,0.0004709,4]
[380840575,1755873045331,-80756.01564672,0.000471,2]
[380840577,1755873045344,-151.0,0.000471,15]
[380840579,1755873045353,-241.111188,0.000471,120]
[380840581,1755873045363,-168.0,0.00047122,2]
[380840583,1755873045374,-168.0,0.00047342,2]
[380840585,1755873045383,-156.07,0.00047447,14]
[380840586,1755873045395,-497.25546722,0.00047622,4]
[380840588,1755873045405,-501.10520505,0.00047632,10]
[380840591,1755873045415,-151.0,0.000477,21]
[380840593,1755873045424,-168.0,0.00047949,2]
[380840595,1755873045434,-1000.0,0.00048,120]
[380840596,1755873045445,-164.0,0.00048,90]
[380840598,1755873045455,-12692.97277622,0.00048,10]
[380840600,1755873045467,-395.59222694,0.00048,10]
[380840601,1755873045477,-158.0,0.00048,90]
[380840602,1755873045487,-168.0,0.00048086,2]
[380840603,1755873045497,-168.0,0.00048223,2]
[380840604,1755873045507,-168.0,0.00048255,2]
[380840605,1755873045517,-755.0,0.00048264,2]
[380840606,1755873045529,-1735.9840757,0.00048297,52]
[380840607,1755873045541,-501.67355875,0.00048534,10]
[380840608,1755873045551,-500.0,0.00048534,10]
[380840610,1755873045638,-500.0,0.00048534,7]
[380840611,1755873045649,-168.0,0.00048879,2]
[380840612,1755873045660,-232.32572668,0.00049,10]
[380840613,1755873045671,-216.99125601,0.00049,10]
[380840614,1755873045681,-501.26524356,0.00049082,10]
[380840615,1755873045691,-500.0,0.00049082,7]
[380840616,1755873045701,-155.0,0.000491,120]
[380840617,1755873045710,-160.0,0.00049143,2]
[380840618,1755873045720,-528.9579881,0.0004917,10]
[380840619,1755873045731,-497.25546722,0.0004917,4]
[380840620,1755873045741,-151.0,0.0004918,120]
[380840621,1755873045752,-50286.89651291,0.0004918,120]
[380840622,1755873045762,-194.42515532,0.00049182,2]
[380840623,1755873045772,-494.61,0.0004925,30]
[380840624,1755873045782,-151.0,0.0004925,30]
[380840625,1755873045792,-151.0,0.0004925,30]
[380840626,1755873045802,-151.0,0.0004925,120]
[380840627,1755873045812,-223.74643006,0.0004925,120]
[380840628,1755873045821,-151.0,0.0004925,120]
[380840629,1755873045831,-151.0,0.0004925,120]
[380840630,1755873045840,-151.0,0.0004925,120]
[380840631,1755873045860,-151.0,0.0004925,120]
[380840632,1755873045869,-151.0,0.0004925,120]
[380840633,1755873045879,-151.0,0.0004925,120]
[380840634,1755873045889,-151.0,0.0004925,120]
[380840635,1755873045900,-151.0,0.0004925,120]
[380840636,1755873045910,-151.0,0.0004925,120]
[380840637,1755873045920,-151.0,0.0004925,120]
[380840638,1755873045931,-151.0,0.0004925,120]
[380840639,1755873045941,-151.0,0.0004925,120]
[380840640,1755873045951,-151.0,0.0004925,120]
[380840641,1755873045961,-151.0,0.0004925,120]
[380840642,1755873045971,-151.0,0.0004925,120]
[380840643,1755873045981,-168.0,0.00049253,2]
[380840644,1755873045992,-1576.53,0.0004926,120]
[380840645,1755873046002,-497.25546722,0.0004926,4]
[380840646,1755873046011,-151.0,0.0004927,120]
[380840647,1755873046021,-151.0,0.0004927,120]
[380840648,1755873046030,-151.0,0.0004927,120]
[380840649,1755873046040,-151.0,0.0004927,120]
[380840650,1755873046049,-151.0,0.0004927,120]
[380840651,1755873046058,-151.0,0.0004927,30]
[380840652,1755873046068,-151.0,0.0004927,30]
[380840653,1755873046077,-151.0,0.0004927,120]
[380840654,1755873046087,-151.0,0.0004927,120]
[380840655,1755873046102,-299.492,0.0004927,120]
[380840656,1755873046111,-151.0,0.0004927,120]
[380840658,1755873046121,-151.0,0.0004927,120]
[380840660,1755873046131,-151.0,0.0004927,120]
[380840661,1755873046141,-151.0,0.0004927,120]
[380840662,1755873046152,-217.204817,0.0004927,120]
[380840663,1755873046161,-151.0,0.0004927,120]
[380840664,1755873046171,-151.0,0.0004927,120]
[380840665,1755873046180,-208.028199,0.0004927,120]
[380840666,1755873046190,-153.317136,0.0004927,120]
[380840667,1755873046199,-994.51093444,0.0004927,4]
[380840668,1755873046209,-500.0,0.00049273,10]
[380840669,1755873046218,-1000.0,0.00049273,10]
[380840670,1755873046228,-300.0,0.00049273,7]
[380840671,1755873046237,-151.0,0.0004928,120]
[380840672,1755873046247,-151.0,0.0004928,120]
[380840673,1755873046257,-151.0,0.0004928,120]
[380840674,1755873046267,-151.0,0.0004928,120]
[380840675,1755873046277,-151.0,0.0004928,30]
[380840676,1755873046287,-151.0,0.0004928,30]
[380840677,1755873046297,-151.0,0.0004928,120]
[380840678,1755873046307,-151.0,0.0004928,120]
[380840679,1755873046317,-201.555681,0.0004928,120]
[380840680,1755873046327,-151.0,0.0004928,120]
[380840681,1755873046336,-151.0,0.0004928,120]
[380840682,1755873046350,-151.0,0.0004928,120]
[380840683,1755873046359,-151.0,0.0004928,15]
[380840684,1755873046370,-370000.0,0.0004928,2]
[380840685,1755873046379,-408.0,0.00049282,2]
[380840686,1755873046389,-27689.04,0.000493,14]
[380840687,1755873046402,-216.36594007,0.0004932,120]
[380840688,1755873046411,-216.36,0.0004932,120]
[380840689,1755873046422,-179.38293933,0.0004932,120]
[380840690,1755873046431,-179.38293933,0.0004932,120]
[380840691,1755873046440,-179.38293933,0.0004932,120]
[380840692,1755873046450,-179.38,0.0004932,120]
[380840693,1755873046460,-300.0,0.00049379,120]
[380840694,1755873046471,-300.0,0.00049379,120]
[380840695,1755873046481,-300.0,0.00049379,120]
[380840696,1755873046491,-300.0,0.00049379,120]
[380840697,1755873046501,-300.0,0.00049379,120]
[380840698,1755873046511,-151.0,0.00049379,120]
[380840699,1755873046520,-151.0,0.00049379,120]
[380840700,1755873046530,-151.0,0.00049379,120]
[380840701,1755873046540,-151.0,0.00049379,120]
[380840702,1755873046549,-151.0,0.00049379,120]
[380840703,1755873046559,-151.0,0.00049379,120]
[380840704,1755873046568,-151.0,0.00049379,120]
[380840705,1755873046578,-203.82073721,0.00049379,120]
[380840706,1755873046588,-250.0,0.00049379,120]
[380840707,1755873046605,-250.0,0.00049379,120]
[380840708,1755873046615,-250.0,0.00049379,120]
[380840709,1755873046626,-250.0,0.00049379,120]
[380840710,1755873046636,-250.0,0.00049379,120]
[380840711,1755873046646,-243.89168695,0.00049379,120]
[380840712,1755873046656,-250.0,0.00049379,120]
[380840713,1755873046666,-250.0,0.00049379,120]
[380840714,1755873046675,-250.0,0.00049379,120]
[380840715,1755873046685,-250.0,0.00049379,120]
[380840716,1755873046695,-250.0,0.00049379,120]
[380840717,1755873046705,-250.0,0.00049379,120]
[380840718,1755873046714,-250.0,0.00049379,120]
[380840719,1755873046724,-250.0,0.00049379,120]
[380840720,1755873046734,-250.0,0.00049379,120]
[380840721,1755873046744,-250.0,0.00049379,120]
[380840722,1755873046753,-250.0,0.00049379,120]
[380840723,1755873046763,-250.0,0.00049379,120]
[380840724,1755873046773,-250.0,0.00049379,120]
[380840725,1755873046782,-250.0,0.00049379,120]
[380840726,1755873046792,-256.48132434,0.00049379,120]
[380840727,1755873046802,-168.0,0.00049481,2]
[380840728,1755873046811,-165.93,0.000495,14]
[380840729,1755873046821,-168.0,0.00049708,2]
[380840730,1755873046831,-1576.53,0.00049808,120]
[380840731,1755873046841,-1007.38843515,0.00049821,10]
[380840732,1755873046857,-1735.9840757,0.00049967,56]
[380840733,1755873046867,-482.0,0.0005,120]
[380840735,1755873046877,-352.86372285,0.0005,120]
[380840736,1755873046886,-232.32572668,0.0005,120]
[380840737,1755873046896,-12282.82337738,0.0005,30]
[380840739,1755873046907,-199.0,0.0005,7]
[380840741,1755873046917,-168.0,0.00050066,2]
[380840742,1755873046929,-168.0,0.00050214,2]
[380840744,1755873046939,-1576.53,0.00050356,120]
[380840746,1755873046949,-300.0,0.00050367,90]
[380840748,1755873046959,-300.0,0.00050367,90]
[380840749,1755873046969,-300.0,0.00050367,90]
[380840751,1755873046979,-300.0,0.00050367,90]
[380840753,1755873046989,-300.0,0.00050367,90]
[380840755,1755873046999,-164.0,0.00050486,120]
[380840756,1755873047008,-158.0,0.00050486,120]
[380840757,1755873047017,-1576.53,0.00050904,120]
[380840758,1755873047027,-3000.0,0.00051,85]
[380840759,1755873047036,-1000.0,0.00051,120]
[380840760,1755873047046,-3000.0,0.0005101,85]
[380840761,1755873047056,-3000.0,0.0005102,85]
[380840762,1755873047065,-3000.0,0.0005103,85]
[380840764,1755873047074,-3000.0,0.0005104,85]
[380840765,1755873047083,-3000.0,0.0005105,85]
[380840767,1755873047095,-3000.0,0.0005106,85]
[380840769,1755873047105,-3000.0,0.0005107,85]
[380840771,1755873047114,-3122.746595,0.0005108,85]
[380840773,1755873047124,-155.0,0.000514,120]
[380840775,1755873047134,-1576.53,0.00051452,120]
[380840777,1755873047143,-160.0,0.00051536,3]
[380840779,1755873047152,-1735.9840757,0.00051638,59]
[380840781,1755873047162,-152.82300143,0.00051699,120]
[380840783,1755873047171,-151.0,0.000517,120]
[380840785,1755873047180,-322607.00034474,0.000517,120]
[380840787,1755873047190,-5056.11637194,0.000519,10]
[380840789,1755873047199,-1001.8635039,0.00052,120]
[380840790,1755873047208,-151.0,0.00052,120]
[380840792,1755873047218,-1576.53,0.00052,120]
[380840794,1755873047227,-27689.04,0.000521,14]
[380840796,1755873047236,-151.0,0.000521,120]
[380840797,1755873047246,-151.0,0.000521,120]
[380840799,1755873047255,-151.0,0.000521,120]
[380840801,1755873047264,-151.0,0.000521,120]
[380840803,1755873047274,-151.0,0.000521,120]
[380840805,1755873047283,-408.0,0.00052282,120]
[380840807,1755873047293,-152.82300143,0.00052384,120]
[380840809,1755873047303,-1717.35,0.000524,7]
[380840811,1755873047313,-1576.53,0.00052547,120]
[380840813,1755873047322,-151.0,0.00052663,120]
[380840815,1755873047331,-201.797042,0.00052663,120]
[380840817,1755873047341,-151.0,0.00052663,120]
[380840819,1755873047354,-151.0,0.00052663,120]
[380840821,1755873047363,-151.0,0.00053,29]
[380840823,1755873047375,-161.0,0.00053011,120]
[380840825,1755873047384,-152.82300143,0.00053068,120]
[380840827,1755873047396,-1576.53,0.00053095,120]
[380840829,1755873047408,-4318.05,0.000531,14]
[380840831,1755873047418,-1735.9840757,0.00053308,63]
[380840833,1755873047428,-151.0,0.000535,28]
[380840835,1755873047438,-1576.53,0.00053643,120]
[380840837,1755873047448,-155.0,0.000537,120]
[380840839,1755873047457,-4318.04,0.000537,14]
[380840841,1755873047467,-151.0,0.000537,120]
[380840843,1755873047476,-151.0,0.000537,120]
[380840845,1755873047485,-151.0,0.000537,30]
[380840847,1755873047495,-272.54462,0.000537,30]
[380840849,1755873047504,-151.0,0.000537,120]
[380840850,1755873047514,-152.82300143,0.00053753,120]
[380840853,1755873047523,-151.0,0.000539,27]
[380840854,1755873047533,-151.0,0.000539,120]
[380840856,1755873047542,-14561.45759337,0.00053989,120]
[380840858,1755873047552,-1000.0,0.00054,120]
[380840860,1755873047562,-151.0,0.00054,26]
[380840868,1755873047646,-232.32572668,0.00054,30]
[380840870,1755873047657,-680.35931863,0.00054,120]
[380840871,1755873047667,-1576.53,0.00054191,120]
[380840872,1755873047677,-152.82300143,0.00054438,120]
[380840873,1755873047688,-151.0,0.000545,30]
[380840874,1755873047698,-151.0,0.000545,28]
[380840875,1755873047708,-199.0,0.00054694,120]
[380840876,1755873047718,-1717.35,0.000547,7]
[380840877,1755873047727,-1576.53,0.00054739,120]
[380840878,1755873047737,-500.0,0.00054773,10]
[380840879,1755873047747,-500.0,0.00054773,10]
[380840880,1755873047756,-500.0,0.00054773,10]
[380840881,1755873047766,-417.98039671,0.00054773,10]
[380840882,1755873047776,-500.0,0.00054773,10]
[380840883,1755873047786,-500.0,0.00054773,10]
[380840884,1755873047796,-500.0,0.00054773,10]
[380840885,1755873047806,-500.0,0.00054773,10]
[380840886,1755873047816,-500.0,0.00054773,10]
[380840887,1755873047827,-480.0,0.00054794,120]
[380840888,1755873047836,-298.74920764,0.00054794,120]
[380840889,1755873047852,-480.0,0.00054794,30]
[380840890,1755873047862,-480.0,0.00054794,120]
[380840891,1755873047872,-480.0,0.00054794,120]
[380840892,1755873047882,-482.96703767,0.00054794,120]
[380840893,1755873047892,-480.0,0.00054794,120]
[380840894,1755873047902,-151.0,0.00054794,120]
[380840895,1755873047911,-480.0,0.00054794,120]
[380840896,1755873047922,-480.0,0.00054794,120]
[380840897,1755873047931,-623.8,0.00054794,120]
[380840898,1755873047941,-480.0,0.00054794,120]
[380840899,1755873047950,-480.0,0.00054794,120]
[380840900,1755873047960,-480.0,0.00054794,120]
[380840901,1755873047969,-480.0,0.00054794,120]
[380840902,1755873047979,-480.0,0.00054794,120]
[380840903,1755873047988,-613.82,0.00054794,120]
[380840904,1755873047999,-512.54264544,0.00054794,120]
[380840905,1755873048008,-571.23112435,0.00054794,120]
[380840906,1755873048019,-480.0,0.00054794,120]
[380840907,1755873048028,-480.0,0.00054794,120]
[380840908,1755873048038,-480.0,0.00054794,120]
[380840909,1755873048048,-480.0,0.00054794,120]
[380840910,1755873048058,-488.68,0.00054794,120]
[380840911,1755873048069,-480.0,0.00054794,120]
[380840912,1755873048079,-500.0,0.00054794,120]
[380840913,1755873048089,-480.0,0.00054794,120]
[380840914,1755873048107,-480.0,0.00054794,120]
[380840916,1755873048118,-480.0,0.00054794,120]
[380840917,1755873048128,-480.0,0.00054794,120]
[380840918,1755873048139,-480.0,0.00054794,120]
[380840919,1755873048151,-480.0,0.00054794,120]
[380840921,1755873048162,-480.0,0.00054794,120]
[380840923,1755873048172,-480.0,0.00054794,120]
[380840925,1755873048182,-480.0,0.00054794,120]
[380840927,1755873048193,-480.0,0.00054794,120]
[380840929,1755873048203,-480.0,0.00054794,120]
[380840931,1755873048212,-480.0,0.00054794,120]
[380840933,1755873048223,-224.64487361,0.00054794,120]
[380840935,1755873048233,-480.0,0.00054794,120]
[380840937,1755873048243,-480.0,0.00054794,120]
[380840939,1755873048253,-480.0,0.00054794,120]
[380840940,1755873048263,-480.0,0.00054794,120]
[380840942,1755873048273,-480.0,0.00054794,120]
[380840944,1755873048283,-480.0,0.00054794,120]
[380840946,1755873048293,-480.0,0.00054794,120]
[380840948,1755873048303,-480.0,0.00054794,120]
[380840950,1755873048312,-572.62501276,0.00054794,120]
[380840952,1755873048322,-480.0,0.00054794,120]
[380840954,1755873048331,-480.0,0.00054794,120]
[380840956,1755873048347,-480.0,0.00054794,120]
[380840958,1755873048357,-480.0,0.00054794,120]
[380840960,1755873048367,-531.4506879,0.00054794,120]
[380840962,1755873048382,-151.0,0.00054794,120]
[380840965,1755873048393,-480.0,0.00054794,120]
[380840967,1755873048403,-401.35156625,0.00054794,120]
[380840969,1755873048416,-484.00144024,0.00054794,120]
[380840971,1755873048428,-480.0,0.00054794,120]
[380840973,1755873048442,-480.0,0.00054794,120]
[380840975,1755873048454,-480.60023889,0.00054794,120]
[380840977,1755873048465,-481.21007685,0.00054794,120]
[380840979,1755873048475,-480.0,0.00054794,120]
[380840981,1755873048486,-480.0,0.00054794,120]
[380840983,1755873048496,-480.0,0.00054794,120]
[380840985,1755873048506,-480.0,0.00054794,120]
[380840987,1755873048519,-480.0,0.00054794,120]
[380840988,1755873048528,-480.0,0.00054794,120]
[380840990,1755873048538,-480.0,0.00054794,120]
[380840992,1755873048548,-362.69283602,0.00054794,120]
[380840994,1755873048557,-480.0,0.00054794,120]
[380840996,1755873048567,-480.0,0.00054794,120]
[380840998,1755873048577,-467.19938673,0.00054794,120]
[380841000,1755873048586,-480.0,0.00054794,120]
[380841002,1755873048602,-480.0,0.00054794,120]
[380841005,1755873048612,-480.0,0.00054794,120]
[380841007,1755873048623,-480.0,0.00054794,120]
[380841009,1755873048634,-480.0,0.00054794,120]
[380841011,1755873048643,-480.0,0.00054794,120]
[380841013,1755873048653,-480.0,0.00054794,120]
[380841014,1755873048663,-480.38726734,0.00054794,120]
[380841016,1755873048673,-249.62843557,0.00054794,120]
[380841019,1755873048683,-480.0,0.00054794,120]
[380841020,1755873048695,-480.0,0.00054794,120]
[380841022,1755873048707,-480.0,0.00054794,120]
[380841024,1755873048720,-480.0,0.00054794,120]
[380841026,1755873048730,-480.0,0.00054794,120]
[380841028,1755873048740,-480.0,0.00054794,120]
[380841030,1755873048751,-473.71875316,0.00054794,120]
[380841032,1755873048761,-362.90011587,0.00054794,120]
[380841034,1755873048770,-480.0,0.00054794,120]
[380841036,1755873048779,-480.0,0.00054794,120]
[380841038,1755873048789,-481.25525595,0.00054794,120]
[380841040,1755873048799,-480.0,0.00054794,120]
[380841042,1755873048810,-480.0,0.00054794,120]
[380841044,1755873048820,-480.0,0.00054794,120]
[380841046,1755873048830,-480.0,0.00054794,120]
[380841048,1755873048839,-485.26,0.00054794,120]
[380841049,1755873048851,-480.0,0.00054794,120]
[380841051,1755873048861,-480.0,0.00054794,120]
[380841053,1755873048870,-480.0,0.00054794,120]
[380841055,1755873048880,-564.69038833,0.00054794,120]
[380841057,1755873048890,-480.0,0.00054794,120]
[380841059,1755873048899,-480.0,0.00054794,120]
[380841061,1755873048909,-480.0,0.00054794,120]
[380841063,1755873048919,-480.0,0.00054794,120]
[380841065,1755873048929,-480.0,0.00054794,120]
[380841067,1755873048939,-480.0,0.00054794,120]
[380841070,1755873048949,-480.0,0.00054794,120]
[380841072,1755873048960,-480.0,0.00054794,120]
[380841074,1755873048969,-480.0,0.00054794,120]
[380841076,1755873048979,-481.4065999,0.00054794,120]
[380841078,1755873048988,-480.0,0.00054794,120]
[380841080,1755873048998,-480.0,0.00054794,120]
[380841082,1755873049008,-293.67033383,0.00054794,120]
[380841084,1755873049018,-480.0,0.00054794,120]
[380841085,1755873049027,-480.0,0.00054794,120]
[380841087,1755873049037,-480.0,0.00054794,120]
[380841090,1755873049047,-480.0,0.00054794,120]
[380841091,1755873049057,-480.0,0.00054794,120]
[380841093,1755873049066,-247.817433,0.00054794,120]
[380841095,1755873049076,-426.81569967,0.00054794,120]
[380841097,1755873049086,-480.0,0.00054794,120]
[380841099,1755873049101,-611.77012824,0.00054794,120]
[380841101,1755873049111,-254.73020501,0.00054794,120]
[380841103,1755873049121,-480.0,0.00054794,120]
[380841105,1755873049131,-480.0,0.00054794,120]
[380841107,1755873049140,-480.0,0.00054794,120]
[380841109,1755873049150,-480.0,0.00054794,120]
[380841111,1755873049159,-480.0,0.00054794,120]
[380841113,1755873049169,-480.0,0.00054794,120]
[380841115,1755873049180,-480.0,0.00054794,120]
[380841117,1755873049189,-480.0,0.00054794,120]
[380841119,1755873049200,-480.0,0.00054794,120]
[380841121,1755873049211,-480.0,0.00054794,120]
[380841122,1755873049221,-349.78856517,0.00054794,120]
[380841124,1755873049232,-480.0,0.00054794,120]
[380841126,1755873049242,-480.0,0.00054794,120]
[380841128,1755873049252,-480.0,0.00054794,120]
[380841130,1755873049262,-480.0,0.00054794,120]
[380841132,1755873049272,-480.0,0.00054794,120]
[380841134,1755873049282,-480.0,0.00054794,120]
[380841136,1755873049291,-234.58460698,0.00054794,120]
[380841138,1755873049300,-480.0,0.00054794,120]
[380841140,1755873049310,-480.0,0.00054794,120]
[380841141,1755873049321,-480.0,0.00054794,120]
[380841143,1755873049331,-480.0,0.00054794,120]
[380841145,1755873049340,-480.0,0.00054794,120]
[380841147,1755873049353,-480.0,0.00054794,120]
[380841149,1755873049363,-233.89045515,0.00054794,120]
[380841151,1755873049373,-525.29699313,0.00054794,120]
[380841153,1755873049384,-480.0,0.00054794,120]
[380841155,1755873049395,-480.0,0.00054794,120]
[380841157,1755873049404,-151.0,0.00054794,120]
[380841159,1755873049413,-480.0,0.00054794,120]
[380841161,1755873049421,-480.0,0.00054794,120]
[380841163,1755873049428,-480.0,0.00054794,120]
[380841164,1755873049437,-480.0,0.00054794,120]
[380841166,1755873049446,-480.0,0.00054794,120]
[380841168,1755873049453,-480.0,0.00054794,120]
[380841170,1755873049462,-480.0,0.00054794,120]
[380841181,1755873049558,-461.55293979,0.00054794,120]
[380841183,1755873049567,-480.0,0.00054794,120]
[380841185,1755873049577,-480.0,0.00054794,120]
[380841187,1755873049584,-496.36,0.00054794,120]
[380841189,1755873049597,-480.0,0.00054794,120]
[380841191,1755873049605,-480.0,0.00054794,120]
[380841193,1755873049614,-480.0,0.00054794,120]
[380841195,1755873049623,-480.0,0.00054794,120]
[380841197,1755873049632,-480.0,0.00054794,120]
[380841199,1755873049641,-480.0,0.00054794,120]
[380841201,1755873049650,-480.0,0.00054794,120]
[380841202,1755873049658,-151.0,0.00054794,120]
[380841204,1755873049666,-480.0,0.00054794,120]
[380841206,1755873049673,-480.0,0.00054794,7]
[380841208,1755873049682,-480.0,0.00054794,120]
[380841210,1755873049690,-480.0,0.00054794,120]
[380841212,1755873049699,-480.0,0.00054794,120]
[380841213,1755873049707,-480.0,0.00054794,120]